lending/lending_fUSD_20250808
["ID","MTS","AMOUNT","RATE_DAILY","PERIOD"]
[377963764,1754632243091,-411.42,0.00018881,2]
[377963765,1754632243100,-2002.77,0.00018881,2]
[377963766,1754632243111,-1374.15,0.00018881,2]
[377963767,1754632243121,-468.58,0.00018881,2]
[377963768,1754632243130,-400.0,0.00018881,2]
[377963769,1754632243139,-400.0,0.00018881,2]
[377963770,1754632243149,-400.0,0.00018881,2]
[377963771,1754632243158,-400.0,0.00018881,2]
[377963772,1754632243167,-400.0,0.00018881,2]
[377963773,1754632243176,-400.0,0.00018881,2]
[377963774,1754632243185,-400.0,0.00018881,2]
[377963775,1754632243194,-939.73,0.00018881,2]
[377963776,1754632243203,-400.0,0.00018881,2]
[377963777,1754632243212,-400.0,0.00018881,2]
[377963778,1754632243222,-400.0,0.00018881,2]
[377963779,1754632243230,-694.31,0.00018881,2]
[377963780,1754632243240,-1269.02,0.00018881,2]
[377963781,1754632243249,-857.34,0.00018881,2]
[377963782,1754632243258,-400.0,0.00018881,2]
[377963783,1754632243268,-824.0,0.00018881,2]
[377963784,1754632243277,-400.0,0.00018881,2]
[377963785,1754632243287,-618.03,0.00018881,2]
[377963786,1754632243296,-400.0,0.00018881,2]
[377963787,1754632243305,-2375.01,0.00018881,2]
[377963788,1754632243314,-400.0,0.00018881,2]
[377963789,1754632243324,-400.0,0.00018881,2]
[377963790,1754632243334,-400.0,0.00018881,2]
[377963791,1754632243343,-400.0,0.00018881,2]
[377963792,1754632243352,-400.0,0.00018881,2]
[377963793,1754632243361,-528.33,0.00018881,2]
[377963794,1754632243370,-220.28792638,0.00018881,2]
[377963795,1754632243380,-400.0,0.00018881,2]
[377963796,1754632243389,-400.0,0.00018881,2]
[377963797,1754632243398,-400.0,0.00018881,2]
[377963798,1754632243407,-711.92,0.00018881,2]
[377963799,1754632243416,-400.0,0.00018881,2]
[377963800,1754632243425,-400.0,0.00018881,2]
[377963801,1754632243434,-400.0,0.00018881,2]
[377963802,1754632243443,-400.0,0.00018881,2]
[377963803,1754632243452,-400.0,0.00018881,2]
[377963804,1754632243461,-400.0,0.00018881,2]
[377963805,1754632243470,-400.0,0.00018881,2]
[377963806,1754632243482,-1224.81,0.00018881,2]
[377963807,1754632243492,-1001.05,0.00018881,2]
[377963808,1754632243501,-1724.44,0.00018881,2]
[377963809,1754632243510,-400.0,0.00018881,2]
[377963810,1754632243520,-650.86,0.00018881,2]
[377963811,1754632243529,-400.0,0.00018881,2]
[377963812,1754632243538,-419.58,0.00018881,2]
[377963813,1754632243547,-761.57,0.00018881,2]
[377963814,1754632243558,-601.93,0.00018881,2]
[377963815,1754632243567,-484.54,0.00018881,2]
[377963816,1754632243576,-1409.65,0.00018881,2]
[377963817,1754632243585,-859.11,0.00018881,2]
[377963818,1754632243594,-693.46,0.00018881,2]
[377963819,1754632243603,-468.9,0.00018881,2]
[377963820,1754632243612,-1520.95,0.00018881,2]
[377963821,1754632243621,-490.77,0.00018881,2]
[377963822,1754632243631,-400.0,0.00018881,2]
[377963823,1754632243639,-400.0,0.00018881,2]
[377963824,1754632243649,-475.01,0.00018881,2]
[377963825,1754632243659,-400.0,0.00018881,2]
[377963826,1754632243669,-400.0,0.00018881,2]
[377963827,1754632243678,-243.32820685,0.00018881,2]
[377963828,1754632243687,-1611.83,0.00018881,2]
[377963829,1754632243696,-767.34,0.00018881,2]
[377963830,1754632243706,-481.56,0.00018881,2]
[377963831,1754632243715,-482.83,0.00018881,2]
[377963832,1754632243724,-400.0,0.00018881,2]
[377963833,1754632243733,-400.0,0.00018881,2]
[377963834,1754632243742,-573.54,0.00018881,2]
[377963835,1754632243751,-454.42,0.00018881,2]
[377963836,1754632243760,-1000.0,0.00018881,2]
[377963837,1754632243770,-400.0,0.00018881,2]
[377963838,1754632243779,-1058.86,0.00018881,2]
[377963839,1754632243788,-506.68,0.00018881,2]
[377963840,1754632243797,-413.59,0.00018881,2]
[377963841,1754632243807,-2115.22,0.00018881,2]
[377963842,1754632243816,-403.06568105,0.00018881,2]
[377963843,1754632243825,-1531.89,0.00018881,2]
[377963844,1754632243834,-863.09,0.00018882,2]
[377963845,1754632243843,-400.0,0.00018882,2]
[377963846,1754632243853,-402.19,0.00018882,2]
[377963847,1754632243862,-540.38,0.00018882,2]
[377963848,1754632243871,-400.0,0.00018882,2]
[377963849,1754632243881,-400.0,0.00018882,2]
[377963850,1754632243890,-625.55,0.00018882,2]
[377963851,1754632243899,-673.35,0.00018882,2]
[377963852,1754632243909,-400.0,0.00018882,2]
[377963853,1754632243918,-461.08,0.00018882,2]
[377963854,1754632243928,-718.19,0.00018882,2]
[377963855,1754632243937,-400.0,0.00018882,2]
[377963856,1754632243946,-330.22969055,0.00018882,2]
[377963857,1754632243955,-400.0,0.00018882,2]
[377963858,1754632243964,-400.0,0.00018882,2]
[377963859,1754632243974,-400.0,0.00018882,2]
[377963860,1754632243984,-400.0,0.00018882,2]
[377963861,1754632243994,-400.0,0.00018882,2]
[377963862,1754632244003,-400.0,0.00018882,2]
[377963863,1754632244012,-502.38391568,0.00018882,2]
[377963864,1754632244021,-400.0,0.00018882,2]
[377963865,1754632244030,-400.0,0.00018882,2]
[377963866,1754632244039,-400.0,0.00018882,2]
[377963867,1754632244048,-520.69,0.00018882,2]
[377963868,1754632244058,-797.79,0.00018882,2]
[377963869,1754632244067,-728.1,0.00018882,2]
[377963870,1754632244076,-400.0,0.00018882,2]
[377963871,1754632244085,-437.67,0.00018882,2]
[377963872,1754632244095,-492.38,0.00018882,2]
[377963873,1754632244104,-400.0,0.00018882,2]
[377963874,1754632244114,-473.71,0.00018882,2]
[377963875,1754632244123,-400.0,0.00018882,2]
[377963876,1754632244132,-400.0,0.00018882,2]
[377963877,1754632244142,-400.0,0.00018882,2]
[377963878,1754632244151,-400.0,0.00018882,2]
[377963879,1754632244160,-487.13,0.00018882,2]
[377963880,1754632244171,-400.0,0.00018882,2]
[377963881,1754632244180,-400.0,0.00018882,2]
[377963882,1754632244189,-400.0,0.00018882,2]
[377963883,1754632244198,-375.91915822,0.00018882,2]
[377963884,1754632244208,-400.0,0.00018882,2]
[377963885,1754632244217,-426.75,0.00018882,2]
[377963886,1754632244226,-400.0,0.00018882,2]
[377963887,1754632244235,-400.0,0.00018882,2]
[377963888,1754632244245,-498.76,0.00018882,2]
[377963889,1754632244254,-400.0,0.00018882,2]
[377963890,1754632244263,-400.0,0.00018882,2]
[377963891,1754632244272,-400.0,0.00018882,2]
[377963892,1754632244282,-763.99,0.00018882,2]
[377963893,1754632244291,-400.0,0.00018882,2]
[377963894,1754632244300,-835.44,0.00018882,2]
[377963895,1754632244310,-400.0,0.00018882,2]
[377963896,1754632244319,-400.0,0.00018882,2]
[377963897,1754632244329,-400.0,0.00018882,2]
[377963898,1754632244339,-400.0,0.00018882,2]
[377963899,1754632244348,-400.0,0.00018882,2]
[377963900,1754632244357,-400.0,0.00018882,2]
[377963901,1754632244367,-400.0,0.00018882,2]
[377963902,1754632244377,-458.42,0.00018882,2]
[377963903,1754632244387,-400.0,0.00018882,2]
[377963904,1754632244397,-764.14,0.00018882,2]
[377963905,1754632244406,-551.79,0.00018882,2]
[377963906,1754632244416,-805.74,0.00018882,2]
[377963907,1754632244426,-400.0,0.00018882,2]
[377963908,1754632244435,-400.0,0.00018882,2]
[377963909,1754632244444,-696.24,0.00018882,2]
[377963910,1754632244454,-936.78,0.00018882,2]
[377963911,1754632244463,-400.0,0.00018882,2]
[377963912,1754632244473,-400.0,0.00018882,2]
[377963913,1754632244489,-400.0,0.00018882,2]
[377963914,1754632244500,-400.0,0.00018882,2]
[377963915,1754632244510,-495.05,0.00018882,2]
[377963916,1754632244519,-409.65,0.00018882,2]
[377963917,1754632244529,-400.0,0.00018882,2]
[377963918,1754632244538,-400.0,0.00018882,2]
[377963919,1754632244547,-400.0,0.00018882,2]
[377963921,1754632244556,-605.6,0.00018882,2]
[377963922,1754632244565,-400.0,0.00018882,2]
[377963923,1754632244574,-682.4,0.00018882,2]
[377963924,1754632244583,-476.57,0.00018882,2]
[377963925,1754632244592,-400.0,0.00018882,2]
[377963926,1754632244601,-725.06,0.00018882,2]
[377963927,1754632244611,-689.73,0.00018882,2]
[377963928,1754632244621,-400.0,0.00018882,2]
[377963929,1754632244631,-400.0,0.00018882,2]
[377963930,1754632244640,-400.0,0.00018882,2]
[377963931,1754632244649,-400.0,0.00018882,2]
[377963932,1754632244659,-400.0,0.00018882,2]
[377963933,1754632244668,-400.0,0.00018882,2]
[377963934,1754632244677,-1069.58,0.00018882,2]
[377963935,1754632244687,-744.85,0.00018882,2]
[377963936,1754632244696,-500.88,0.00018882,2]
[377963937,1754632244705,-953.28,0.00018882,2]
[377963938,1754632244715,-400.0,0.00018882,2]
[377963939,1754632244724,-400.0,0.00018882,2]
[377963940,1754632244733,-400.0,0.00018882,2]
[377963941,1754632244742,-400.0,0.00018882,2]
[377963942,1754632244752,-646.34,0.00018882,2]
[377963943,1754632244761,-586.9,0.00018882,2]
[377963944,1754632244770,-929.73,0.00018882,2]
[377963945,1754632244779,-400.0,0.00018882,2]
[377963946,1754632244789,-996.66,0.00018882,2]
[377963947,1754632244798,-1086.14,0.00018882,2]
[377963948,1754632244808,-400.0,0.00018882,2]
[377963949,1754632244817,-400.0,0.00018882,2]
[377963950,1754632244827,-400.0,0.00018882,2]
[377963951,1754632244836,-400.0,0.00018882,2]
[377963952,1754632244846,-400.0,0.00018882,2]
[377963953,1754632244855,-400.0,0.00018882,2]
[377963954,1754632244864,-1008.68,0.00018882,2]
[377963955,1754632244874,-402.24,0.00018882,2]
[377963956,1754632244883,-400.0,0.00018882,2]
[377963957,1754632244892,-410.31533437,0.00018882,2]
[377963958,1754632244902,-928.97,0.00018882,2]
[377963959,1754632244911,-400.0,0.00018882,2]
[377963960,1754632244920,-560.68,0.00018882,2]
[377963961,1754632244930,-682.08,0.00018882,2]
[377963962,1754632244939,-842.51,0.00018882,2]
[377963963,1754632244948,-400.0,0.00018882,2]
[377963964,1754632244958,-783.42,0.00018882,2]
[377963965,1754632244967,-626.21,0.00018882,2]
[377963966,1754632244976,-1500.1,0.00018882,2]
[377963967,1754632244985,-1229.92,0.00018882,2]
[377963968,1754632244994,-844.33,0.00018882,2]
[377963969,1754632245004,-1970.61,0.00018882,2]
[377963970,1754632245013,-530.02,0.00018882,2]
[377963971,1754632245022,-652.23,0.00018882,2]
[377963972,1754632245032,-637.52,0.00018882,2]
[377963974,1754632245042,-400.0,0.00018882,2]
[377963976,1754632245051,-181.66379171,0.00018882,2]
[377963977,1754632245060,-400.0,0.00018882,2]
[377963978,1754632245070,-1260.86,0.00018882,2]
[377963979,1754632245079,-400.0,0.00018882,2]
[377963980,1754632245088,-1326.52,0.00018882,2]
[377963982,1754632245097,-400.0,0.00018882,2]
[377963984,1754632245106,-400.0,0.00018882,2]
[377963985,1754632245115,-400.0,0.00018882,2]
[377963986,1754632245125,-1043.59,0.00018882,2]
[377963987,1754632245134,-543.74,0.00018882,2]
[377963988,1754632245143,-977.32,0.00018882,2]
[377963989,1754632245152,-400.0,0.00018882,2]
[377963990,1754632245162,-1277.72,0.00018882,2]
[377963991,1754632245171,-400.0,0.00018882,2]
[377963993,1754632245181,-506.84,0.00018882,2]
[377963995,1754632245190,-400.0,0.00018882,2]
[377963996,1754632245199,-400.0,0.00018882,2]
[377963997,1754632245208,-400.0,0.00018882,2]
[377963998,1754632245217,-889.45,0.00018882,2]
[377963999,1754632245227,-2015.23,0.00018882,2]
[377964000,1754632245236,-550.86,0.00018882,2]
[377964001,1754632245245,-400.0,0.00018882,2]
[377964002,1754632245255,-511.75,0.00018882,2]
[377964003,1754632245264,-694.24,0.00018882,2]
[377964004,1754632245273,-529.07,0.00018882,2]
[377964005,1754632245283,-1069.51,0.00018882,2]
[377964006,1754632245292,-400.0,0.00018882,2]
[377964007,1754632245302,-400.0,0.00018882,2]
[377964008,1754632245311,-400.0,0.00018882,2]
[377964009,1754632245320,-1000.49,0.00018882,2]
[377964010,1754632245330,-400.0,0.00018882,2]
[377964011,1754632245339,-739.15,0.00018882,2]
[377964012,1754632245348,-400.0,0.00018882,2]
[377964013,1754632245577,-400.0,0.00018882,2]
[377964014,1754632245587,-493.21,0.00018882,2]
[377964015,1754632245596,-1244.95,0.00018882,2]
[377964016,1754632245605,-1129.87,0.00018882,2]
[377964017,1754632245615,-846.59,0.00018882,2]
[377964018,1754632245624,-1059.9,0.00018882,2]
[377964019,1754632245633,-400.0,0.00018882,2]
[377964020,1754632245643,-400.0,0.00018882,2]
[377964021,1754632245652,-426.092325,0.00018882,2]
[377964022,1754632245661,-400.0,0.00018882,2]
[377964023,1754632245670,-400.0,0.00018882,2]
[377964024,1754632245679,-988.26,0.00018882,2]
[377964025,1754632245688,-400.0,0.00018882,2]
[377964026,1754632245698,-617.45,0.00018882,2]
[377964027,1754632245707,-894.87,0.00018882,2]
[377964028,1754632245716,-676.31,0.00018882,2]
[377964029,1754632245726,-400.0,0.00018882,2]
[377964030,1754632245735,-506.14637,0.00018882,2]
[377964031,1754632245744,-1319.48,0.00018882,2]
[377964032,1754632245753,-938.9,0.00018882,2]
[377964033,1754632245763,-1226.05,0.00018882,2]
[377964034,1754632245772,-400.0,0.00018882,2]
[377964035,1754632245782,-1405.68,0.00018882,2]
[377964036,1754632245791,-400.0,0.00018882,2]
[377964037,1754632245800,-951.59,0.00018882,2]
[377964038,1754632245809,-400.0,0.00018882,2]
[377964039,1754632245819,-400.0,0.00018882,2]
[377964040,1754632245828,-517.42,0.00018882,2]
[377964041,1754632245838,-901.12,0.00018882,2]
[377964042,1754632245847,-688.44,0.00018882,2]
[377964043,1754632245857,-827.19,0.00018882,2]
[377964044,1754632245866,-1106.65,0.00018882,2]
[377964045,1754632245875,-1839.84,0.00018882,2]
[377964046,1754632245886,-549.61,0.00018882,2]
[377964047,1754632245895,-400.0,0.00018882,2]
[377964048,1754632245904,-506.87,0.00018882,2]
[377964049,1754632245914,-851.77,0.00018882,2]
[377964050,1754632245924,-813.79,0.00018882,2]
[377964051,1754632245933,-400.0,0.00018882,2]
[377964052,1754632245942,-837.03,0.00018882,2]
[377964053,1754632245951,-400.0,0.00018882,2]
[377964054,1754632245961,-851.83,0.00018882,2]
[377964055,1754632245971,-465.41,0.00018882,2]
[377964056,1754632245980,-418.01,0.00018882,2]
[377964057,1754632245990,-1653.15,0.00018882,2]
[377964058,1754632245999,-471.63,0.00018882,2]
[377964059,1754632246008,-400.0,0.00018882,2]
[377964060,1754632246017,-1408.81,0.00018882,2]
[377964061,1754632246026,-5984.56,0.00018882,2]
[377964062,1754632246036,-400.0,0.00018882,2]
[377964063,1754632246045,-400.0,0.00018882,2]
[377964064,1754632246054,-606.85,0.00018882,2]
[377964065,1754632246064,-400.0,0.00018882,2]
[377964066,1754632246073,-400.0,0.00018882,2]
[377964067,1754632246082,-1517.8,0.00018882,2]
[377964068,1754632246092,-486.59,0.00018882,2]
[377964069,1754632246101,-1387.13,0.00018882,2]
[377964070,1754632246110,-1618.28,0.00018882,2]
[377964071,1754632246119,-400.0,0.00018882,2]
[377964072,1754632246129,-1012.96,0.00018882,2]
[377964073,1754632246138,-400.0,0.00018882,2]
[377964074,1754632246147,-1320.76,0.00018882,2]
[377964075,1754632246156,-400.0,0.00018882,2]
[377964076,1754632246165,-400.0,0.00018882,2]
[377964077,1754632246174,-400.0,0.00018882,2]
[377964078,1754632246183,-400.0,0.00018882,2]
[377964079,1754632246193,-400.0,0.00018882,2]
[377964080,1754632246202,-1534.05,0.00018882,2]
[377964081,1754632246212,-449.88,0.00018882,2]
[377964082,1754632246221,-400.0,0.00018882,2]
[377964083,1754632246230,-1443.34,0.00018882,2]
[377964084,1754632246239,-469.02,0.00018882,2]
[377964085,1754632246249,-475.28,0.00018882,2]
[377964086,1754632246258,-812.18,0.00018882,2]
[377964087,1754632246267,-783.57,0.00018882,2]
[377964088,1754632246277,-907.3,0.00018882,2]
[377964089,1754632246286,-400.0,0.00018882,2]
[377964090,1754632246295,-1145.9,0.00018882,2]
[377964091,1754632246304,-1705.92,0.00018882,2]
[377964092,1754632246313,-917.35,0.00018882,2]
[377964093,1754632246322,-424.34225566,0.00018882,2]
[377964094,1754632246332,-400.0,0.00018882,2]
[377964095,1754632246341,-474.66,0.00018882,2]
[377964096,1754632246351,-1155.74,0.00018882,2]
[377964097,1754632246360,-400.0,0.00018882,2]
[377964098,1754632246369,-1107.92,0.00018882,2]
[377964099,1754632246379,-400.0,0.00018882,2]
[377964100,1754632246388,-400.0,0.00018882,2]
[377964101,1754632246398,-1273.96,0.00018882,2]
[377964102,1754632246408,-1222.9,0.00018882,2]
[377964104,1754632246418,-400.0,0.00018882,2]
[377964106,1754632246428,-458.32,0.00018882,2]
[377964108,1754632246438,-400.0,0.00018882,2]
[377964110,1754632246448,-1129.11,0.00018882,2]
[377964112,1754632246458,-666.7,0.00018882,2]
[377964114,1754632246467,-1058.26,0.00018882,2]
[377964116,1754632246478,-1245.97,0.00018882,2]
[377964118,1754632246490,-927.31,0.00018882,2]
[377964119,1754632246500,-400.0,0.00018882,2]
[377964121,1754632246511,-400.0,0.00018882,2]
[377964124,1754632246520,-350.96091352,0.00018882,2]
[377964126,1754632246530,-400.0,0.00018882,2]
[377964128,1754632246539,-738.32,0.00018882,2]
[377964130,1754632246549,-400.0,0.00018882,2]
[377964132,1754632246559,-400.0,0.00018882,2]
[377964134,1754632246569,-602.07,0.00018882,2]
[377964136,1754632246579,-744.92,0.00018882,2]
[377964138,1754632246589,-430.93,0.00018882,2]
[377964140,1754632246606,-400.0,0.00018882,2]
[377964142,1754632246616,-400.0,0.00018882,2]
[377964144,1754632246625,-782.03,0.00018882,2]
[377964146,1754632246635,-400.0,0.00018882,2]
[377964148,1754632246644,-419.69,0.00018882,2]
[377964149,1754632246654,-400.0,0.00018882,2]
[377964151,1754632246663,-1222.48,0.00018882,2]
[377964153,1754632246673,-400.0,0.00018882,2]
[377964155,1754632246683,-400.0,0.00018882,2]
[377964157,1754632246692,-890.55,0.00018882,2]
[377964159,1754632246701,-400.0,0.00018882,2]
[377964161,1754632246711,-400.0,0.00018882,2]
[377964164,1754632246720,-1396.26,0.00018882,2]
[377964166,1754632246730,-400.0,0.00018882,2]
[377964168,1754632246739,-2653.63,0.00018882,2]
[377964169,1754632246748,-423.06,0.00018882,2]
[377964172,1754632246758,-400.0,0.00018882,2]
[377964174,1754632246767,-400.0,0.00018882,2]
[377964175,1754632246777,-412.08,0.00018882,2]
[377964177,1754632246786,-400.0,0.00018882,2]
[377964180,1754632246795,-769.37,0.00018882,2]
[377964182,1754632246808,-400.0,0.00018882,2]
[377964183,1754632246818,-1641.86,0.00018882,2]
[377964186,1754632246828,-400.0,0.00018882,2]
[377964188,1754632246837,-1140.42,0.00018882,2]
[377964190,1754632246847,-682.17,0.00018882,2]
[377964192,1754632246866,-828.98,0.00018882,2]
[377964194,1754632246882,-885.9,0.00018882,2]
[377964196,1754632246892,-774.65,0.00018882,2]
[377964198,1754632246901,-400.0,0.00018882,2]
[377964199,1754632246910,-400.0,0.00018882,2]
[377964202,1754632246920,-854.41,0.00018882,2]
[377964204,1754632246929,-400.0,0.00018882,2]
[377964205,1754632246939,-424.37,0.00018882,2]
[377964208,1754632246948,-810.26,0.00018882,2]
[377964210,1754632246957,-848.44,0.00018882,2]
[377964212,1754632246967,-1317.81,0.00018882,2]
[377964214,1754632246976,-400.0,0.00018882,2]
[377964216,1754632246987,-413.31,0.00018882,2]
[377964217,1754632246998,-400.0,0.00018882,2]
[377964220,1754632247009,-723.61,0.00018882,2]
[377964221,1754632247019,-1548.64,0.00018882,2]
[377964224,1754632247031,-400.0,0.00018882,2]
[377964226,1754632247040,-450.44,0.00018882,2]
[377964227,1754632247050,-1432.87,0.00018882,2]
[377964229,1754632247060,-1591.92,0.00018882,2]
[377964231,1754632247069,-816.73,0.00018882,2]
[377964233,1754632247081,-500.9537955,0.00018882,2]
[377964235,1754632247091,-956.3,0.00018882,2]
[377964237,1754632247100,-1173.52,0.00018882,2]
[377964239,1754632247109,-2037.89,0.00018882,2]
[377964241,1754632247118,-400.0,0.00018882,2]
[377964243,1754632247128,-1597.38,0.00018882,2]
[377964245,1754632247138,-400.0,0.00018882,2]
[377964247,1754632247147,-767.04,0.00018882,2]
[377964249,1754632247157,-400.0,0.00018882,2]
[377964251,1754632247166,-14351.56,0.00018882,2]
[377964253,1754632247175,-400.0,0.00018882,2]
[377964255,1754632247184,-1377.67,0.00018882,2]
[377964257,1754632247194,-706.7,0.00018882,2]
[377964260,1754632247203,-400.0,0.00018882,2]
[377964262,1754632247212,-400.0,0.00018882,2]
[377964263,1754632247222,-820.02,0.00018882,2]
[377964264,1754632247231,-404.44,0.00018882,2]
[377964265,1754632247240,-1216.44,0.00018882,2]
[377964266,1754632247249,-905.54,0.00018882,2]
[377964267,1754632247259,-429.11,0.00018882,2]
[377964268,1754632247269,-691.14,0.00018882,2]
[377964269,1754632247279,-400.0,0.00018882,2]
[377964270,1754632247289,-746.44,0.00018882,2]
[377964271,1754632247298,-1405.31,0.00018882,2]
[377964272,1754632247308,-400.0,0.00018882,2]
[377964273,1754632247318,-361.6008372,0.00018882,2]
[377964274,1754632247327,-551.95,0.00018882,2]
[377964275,1754632247337,-1154.24,0.00018882,2]
[377964276,1754632247346,-972.66,0.00018882,2]
[377964277,1754632247356,-400.0,0.00018882,2]
[377964278,1754632247365,-758.8,0.00018882,2]
[377964279,1754632247375,-545.56,0.00018882,2]
[377964280,1754632247385,-582.23,0.00018882,2]
[377964281,1754632247395,-520.3,0.00018882,2]
[377964282,1754632247404,-400.0,0.00018882,2]
[377964283,1754632247414,-1115.78,0.00018882,2]
[377964284,1754632247423,-400.0,0.00018882,2]
[377964285,1754632247434,-849.41,0.00018882,2]
[377964286,1754632247443,-711.24,0.00018882,2]
[377964287,1754632247455,-400.0,0.00018882,2]
[377964288,1754632247465,-400.0,0.00018882,2]
[377964289,1754632247475,-832.13,0.00018882,2]
[377964290,1754632247489,-1440.35,0.00018882,2]
[377964291,1754632247499,-444.13,0.00018882,2]
[377964292,1754632247508,-1057.85,0.00018882,2]
[377964293,1754632247518,-400.0,0.00018882,2]
[377964294,1754632247528,-838.15,0.00018882,2]
[377964295,1754632247538,-400.0,0.00018882,2]
[377964296,1754632247547,-400.0,0.00018882,2]
[377964297,1754632247560,-573.96,0.00018882,2]
[377964298,1754632247570,-1138.67,0.00018882,2]
[377964299,1754632247580,-400.0,0.00018882,2]
[377964300,1754632247589,-1024.19,0.00018882,2]
[377964301,1754632247599,-528.3,0.00018882,2]
[377964302,1754632247609,-400.0,0.00018882,2]
[377964303,1754632247623,-1089.84,0.00018882,2]
[377964304,1754632247640,-400.0,0.00018882,2]
[377964305,1754632247650,-400.0,0.00018882,2]
[377964306,1754632247660,-1097.99,0.00018882,2]
[377964307,1754632247669,-630.99,0.00018882,2]
[377964308,1754632247679,-400.0,0.00018882,2]
[377964309,1754632247688,-903.7,0.00018882,2]
[377964310,1754632247698,-400.0,0.00018882,2]
[377964311,1754632247707,-402.69,0.00018882,2]
[377964312,1754632247717,-400.0,0.00018882,2]
[377964313,1754632247726,-1383.81,0.00018882,2]
[377964314,1754632247742,-1236.32,0.00018882,2]
[377964315,1754632247761,-400.0,0.00018882,2]
[377964316,1754632247771,-400.0,0.00018882,2]
[377964317,1754632247780,-1456.6,0.00018882,2]
[377964318,1754632247790,-545.36,0.00018882,2]
[377964319,1754632247799,-400.0,0.00018882,2]
[377964320,1754632247809,-549.77,0.00018882,2]
[377964321,1754632247818,-555.66,0.00018882,2]
[377964322,1754632247830,-1096.66,0.00018882,2]
[377964323,1754632247839,-400.0,0.00018882,2]
[377964324,1754632247849,-403.13,0.00018882,2]
[377964325,1754632247858,-602.38,0.00018882,2]
[377964326,1754632247867,-620.01,0.00018882,2]
[377964327,1754632247877,-1071.3,0.00018882,2]
[377964328,1754632247886,-400.0,0.00018882,2]
[377964329,1754632247896,-425.93,0.00018882,2]
[377964330,1754632247905,-400.0,0.00018882,2]
[377964331,1754632247915,-912.19,0.00018882,2]
[377964332,1754632247924,-619.12,0.00018882,2]
[377964333,1754632248015,-155.5454894,0.00018882,2]
[377964334,1754632248025,-633.44,0.00018882,2]
[377964335,1754632248035,-3359.11,0.00018882,2]
[377964336,1754632248044,-491.48,0.00018882,2]
[377964337,1754632248053,-836.04,0.00018882,2]
[377964338,1754632248062,-400.0,0.00018882,2]
[377964339,1754632248071,-400.0,0.00018882,2]
[377964340,1754632248081,-400.0,0.00018882,2]
[377964341,1754632248090,-400.0,0.00018882,2]
[377964342,1754632248099,-621.59,0.00018882,2]
[377964343,1754632248108,-952.83,0.00018882,2]
[377964344,1754632248117,-400.0,0.00018882,2]
[377964345,1754632248127,-811.33,0.00018882,2]
[377964346,1754632248136,-548.59,0.00018882,2]
[377964347,1754632248146,-848.73,0.00018882,2]
[377964348,1754632248156,-2068.23,0.00018882,2]
[377964349,1754632248165,-708.65,0.00018882,2]
[377964350,1754632248175,-788.19,0.00018882,2]